[Event "58th Akiba Rubinstein A 2022"]
[Site "Polanica-Zdroj"]
[Date "2022.08.16"]
[Round "4.5"]
[White "Kolodziejski, Piotr"]
[Black "Dziewonski, Dariusz"]
[Result "1/2-1/2"]
[ECO "C68"]
[WhiteElo "2107"]
[BlackElo "2029"]
[Annotator "NA RC"]
[PlyCount "52"]
[EventDate "2022.08.13"]
[EventCountry "POL"]
[SourceTitle "playchess.com"]
[Source "ChessBase"]
[SourceQuality "1"]
[TimeControl "40/5400+30:1800+30"]

1. e4 {[%emt 0:00:03]} e5 {[%emt 0:03:27]} 2. Nf3 {[%emt 0:00:09]} Nc6 {[%emt 0:00:03]} 3. Bb5 {[%emt 0:00:06]} a6 {[%emt 0:00:04]} 4. Bxc6 {[%emt 0:00:08]} dxc6 {[%emt 0:00:03]} 5. O-O {[%emt 0:00:08]} f6 {[%emt 0:00:18]} 6. d4 {[%emt 0:00:06]} exd4 {[%emt 0:00:04]} 7. Nxd4 {[%emt 0:00:10]} c5 {[%emt 0:00:05]} 8. Ne2 {[%emt 0:00:15]} Qxd1 {[%emt 0:00:06]} 9. Rxd1 {[%emt 0:00:04]} Bd7 {[%emt 0:00:12]} 10. Nbc3 {[%emt 0:04:57]} O-O-O {[%emt 0:00:23]} 11. Bf4 {[%emt 0:05:53]} Ne7 {[%emt 0:11:22]} 12. Rd2 {[%emt 0:04:43]} g5 {[%emt 0:09:50]} 13. Bg3 {[%emt 0:08:42]} Bg7 {[%emt 0:06:49]} 14. Rad1 {[%emt 0:01:22]} h6 {[%emt 0:18:58]} 15. f3 {[%emt 0:12:07]} b6 {[%emt 0:02:11]} 16. b3 {[%emt 0:09:33]} f5 {[%emt 0:05:25]} 17. Bf2 {[%emt 0:05:21]} fxe4 {[%emt 0:07:41]} 18. fxe4 {[%emt 0:02:36]} Bg4 {[%emt 0:07:37]} 19. h3 {[%emt 0:10:16]} Rxd2 {[%emt 0:02:18]} 20. Rxd2 {[%emt 0:00:06]} Be6 {[%emt 0:01:05]} 21. Nd1 {[%emt 0:02:47]} a5 {[%emt 0:07:04]} 22. Ne3 {[%emt 0:02:15]} Rd8 {[%emt 0:01:33]} 23. Rxd8+ {[%emt 0:00:54]} Kxd8 {[%emt 0:00:01]} 24. Be1 {[%emt 0:02:30]} Bd4 {[%emt 0:08:01]} 25. Nxd4 {[%emt 0:01:31]} cxd4 {[%emt 0:00:04]} 26. Nd1 {[%emt 0:00:35]} c5 {[%emt 0:02:43]} 1/2-1/2

[Event "58th Akiba Rubinstein A 2022"]
[Site "Polanica-Zdroj"]
[Date "2022.08.16"]
[Round "4.6"]
[White "Skrzypczynski, Kacper"]
[Black "Bugajski, Robert"]
[Result "1/2-1/2"]
[ECO "A45"]
[WhiteElo "1793"]
[BlackElo "2075"]
[Annotator "NA RC"]
[PlyCount "66"]
[EventDate "2022.08.13"]
[EventCountry "POL"]
[SourceTitle "playchess.com"]
[Source "ChessBase"]
[SourceQuality "1"]
[TimeControl "40/5400+30:1800+30"]

1. d4 {[%emt 0:00:03]} Nf6 {[%emt 0:00:11]} 2. Bg5 {[%emt 0:00:06]} d5 {[%emt 0:00:19]} 3. Bxf6 {[%emt 0:00:09]} gxf6 {[%emt 0:00:09]} 4. e3 {[%emt 0:00:17]} c5 {[%emt 0:00:46]} 5. dxc5 {[%emt 0:01:06]} Nc6 {[%emt 0:00:40]} 6. c3 {[%emt 0:01:25]} e6 {[%emt 0:00:54]} 7. Nd2 {[%emt 0:02:40]} Bxc5 {[%emt 0:01:27]} 8. Nb3 {[%emt 0:00:07]} Be7 {[%emt 0:02:45]} 9. Qh5 {[%emt 0:00:17]} Bd7 {[%emt 0:05:18]} 10. O-O-O {[%emt 0:02:02]} Qc7 {[%emt 0:03:48]} 11. f4 {[%emt 0:01:33]} a5 {[%emt 0:03:37]} 12. a4 {[%emt 0:12:27]} Na7 {[%emt 0:09:52]} 13. Nd4 {[%emt 0:00:28]} Qb6 {[%emt 0:06:04]} 14. b3 {[%emt 0:07:45]} Qc5 {[%emt 0:06:30]} 15. Kd2 {[%emt 0:00:30]} Rc8 {[%emt 0:04:45]} 16. Rc1 {[%emt 0:00:17]} Qa3 {[%emt 0:07:45]} 17. Bd3 {[%emt 0:05:24]} Nc6 {[%emt 0:04:34]} 18. Nge2 {[%emt 0:11:28]} Nxd4 {[%emt 0:07:06]} 19. Nxd4 {[%emt 0:00:12]} f5 {[%emt 0:00:53]} 20. Bb5 {[%emt 0:04:00]} Qd6 {[%emt 0:03:19]} 21. g4 {[%emt 0:06:57]} fxg4 {[%emt 0:03:00]} 22. Rhg1 {[%emt 0:01:57]} Bf6 {[%emt 0:00:53]} 23. Bxd7+ {[%emt 0:00:06]} Qxd7 {[%emt 0:00:29]} 24. Rxg4 {[%emt 0:00:30]} Ke7 {[%emt 0:00:45]} 25. Nb5 {[%emt 0:01:49]} Rc5 {[%emt 0:04:07]} 26. Rgg1 {[%emt 0:00:45]} Rhc8 {[%emt 0:00:36]} 27. Qe2 {[%emt 0:01:12]} h5 {[%emt 0:02:09]} 28. h3 {[%emt 0:05:58]} h4 {[%emt 0:01:39]} 29. Rg4 {[%emt 0:03:29]} Qd8 {[%emt 0:00:34]} 30. Qd3 {[%emt 0:01:25]} Qh8 {[%emt 0:00:41]} 31. Rc2 {[%emt 0:01:12]} Rg8 {[%emt 0:03:38]} 32. Rc1 {[%emt 0:07:27]} Rgc8 {[%emt 0:01:44]} 33. Rgg1 {[%emt 0:04:02]} R8c6 {[%emt 0:03:01]} 1/2-1/2

[Event "58th Akiba Rubinstein A 2022"]
[Site "Polanica-Zdroj"]
[Date "2022.08.16"]
[Round "4.7"]
[White "Smietanska, Wiktoria"]
[Black "Lambrecht, Tomasz"]
[Result "1/2-1/2"]
[ECO "C07"]
[WhiteElo "1919"]
[BlackElo "1956"]
[Annotator "NA RC"]
[PlyCount "72"]
[EventDate "2022.08.13"]
[EventCountry "POL"]
[SourceTitle "playchess.com"]
[Source "ChessBase"]
[SourceQuality "1"]
[TimeControl "40/5400+30:1800+30"]

1. e4 e6 2. d4 d5 3. Nd2 c5 4. exd5 Qxd5 5. dxc5 Bxc5 6. Ngf3 Nf6 7. Bc4 Qd6 8. O-O O-O 9. Qe2 Qc7 10. b3 b6 11. Bb2 Nbd7 12. Bd3 Bb7 13. c4 Be7 14. Rfe1 Rad8 15. Bc2 Qf4 16. Rad1 Bb4 17. Qe3 Qxe3 18. Rxe3 Nb8 19. a3 Bc5 20. Re2 Nc6 21. b4 Nd4 22. Nxd4 Bxd4 23. Bxd4 Rxd4 24. Rc1 Rfd8 25. Nf1 Ba6 26. b5 Bb7 27. Ne3 Nd7 28. Ra1 Nc5 29. f3 f6 30. a4 a5 31. bxa6 Bxa6 32. a5 Bxc4 33. Nxc4 Rxc4 34. axb6 Rb4 35. Rc1 Rxb6 36. Bxh7+ Kxh7 1/2-1/2

[Event "58th Akiba Rubinstein A 2022"]
[Site "Polanica-Zdroj"]
[Date "2022.08.16"]
[Round "4.8"]
[White "Betkowski, Andrzej"]
[Black "Kejna, Piotr"]
[Result "0-1"]
[ECO "B07"]
[WhiteElo "2063"]
[BlackElo "1970"]
[Annotator "NA RC"]
[PlyCount "72"]
[EventDate "2022.08.13"]
[EventCountry "POL"]
[SourceTitle "playchess.com"]
[Source "ChessBase"]
[SourceQuality "1"]
[TimeControl "40/5400+30:1800+30"]

1. d4 {[%emt 0:00:05]} d6 {[%emt 0:00:14]} 2. e4 {[%emt 0:00:35]} Nf6 {[%emt 0:00:16]} 3. Nc3 {[%emt 0:00:38]} g6 {[%emt 0:00:21]} 4. Be3 {[%emt 0:00:44]} c6 {[%emt 0:00:11]} 5. Qd2 {[%emt 0:01:57]} b5 {[%emt 0:02:39]} 6. f3 {[%emt 0:07:40]} Bg7 {[%emt 0:02:58]} 7. Bd3 {[%emt 0:02:19]} Nbd7 {[%emt 0:09:29]} 8. Nge2 {[%emt 0:02:38]} Nb6 {[%emt 0:01:24]} 9. Bh6 {[%emt 0:11:04]} O-O {[%emt 0:01:49]} 10. h4 {[%emt 0:06:24]} b4 {[%emt 0:06:41]} 11. Nd1 {[%emt 0:01:36]} c5 {[%emt 0:03:17]} 12. c3 {[%emt 0:01:18]} bxc3 {[%emt 0:04:28]} 13. bxc3 {[%emt 0:02:49]} c4 {[%emt 0:06:49]} 14. Bc2 {[%emt 0:00:20]} Nbd7 {[%emt 0:00:52]} 15. h5 {[%emt 0:06:03]} Qa5 {[%emt 0:08:03]} 16. hxg6 {[%emt 0:05:16]} fxg6 {[%emt 0:00:24]} 17. Bxg7 {[%emt 0:00:58]} Kxg7 {[%emt 0:00:02]} 18. Qh6+ {[%emt 0:01:22]} Kf7 {[%emt 0:00:22]} 19. g4 {[%emt 0:01:04]} Ke8 {[%emt 0:02:38]} 20. f4 {[%emt 0:11:50]} Rf7 {[%emt 0:03:46]} 21. g5 {[%emt 0:09:17]} Ng8 {[%emt 0:00:24]} 22. Qh4 {[%emt 0:01:35]} e6 {[%emt 0:02:49]} 23. Ne3 {[%emt 0:02:44]} Nb6 {[%emt 0:01:13]} 24. Rf1 {[%emt 0:02:11]} Ne7 {[%emt 0:03:38]} 25. Ng4 {[%emt 0:02:08]} Nd7 {[%emt 0:01:32]} 26. Nh6 {[%emt 0:01:27]} Rf8 {[%emt 0:01:44]} 27. f5 {[%emt 0:00:45]} exf5 {[%emt 0:04:37]} 28. exf5 {[%emt 0:00:11]} Bb7 {[%emt 0:00:28]} 29. f6 {[%emt 0:05:57]} Nd5 {[%emt 0:00:14]} 30. Qg3 {[%emt 0:01:49]} Kd8 {[%emt 0:00:59]} 31. Kd2 {[%emt 0:00:39]} Kc7 {[%emt 0:00:35]} 32. f7 {[%emt 0:01:08]} Bc6 {[%emt 0:01:00]} 33. Nf4 {[%emt 0:01:21]} Nxf4 {[%emt 0:01:22]} 34. Rxf4 {[%emt 0:01:01]} Rab8 {[%emt 0:00:55]} 35. Ng4 {[%emt 0:01:19]} Qxg5 {[%emt 0:00:33]} 36. Qf2 {[%emt 0:00:55]} Rxf7 {[%emt 0:00:33]} 0-1

[Event "58th Akiba Rubinstein A 2022"]
[Site "Polanica-Zdroj"]
[Date "2022.08.16"]
[Round "4.9"]
[White "Iwanczuk, Krzysztof"]
[Black "Antoniewicz, Jakub"]
[Result "0-1"]
[ECO "B32"]
[WhiteElo "1947"]
[BlackElo "1931"]
[Annotator "NA RC"]
[PlyCount "78"]
[EventDate "2022.08.13"]
[EventCountry "POL"]
[SourceTitle "playchess.com"]
[Source "ChessBase"]
[SourceQuality "1"]
[TimeControl "40/5400+30:1800+30"]

1. e4 {[%emt 0:00:03]} c5 {[%emt 0:01:45]} 2. Nf3 {[%emt 0:00:09]} Nc6 {[%emt 0:00:05]} 3. d4 {[%emt 0:00:08]} cxd4 {[%emt 0:00:04]} 4. Nxd4 {[%emt 0:00:05]} e5 {[%emt 0:00:05]} 5. Nb5 {[%emt 0:00:07]} a6 {[%emt 0:00:10]} 6. Nd6+ {[%emt 0:00:20]} Bxd6 {[%emt 0:02:02]} 7. Qxd6 {[%emt 0:00:06]} Qe7 {[%emt 0:00:05]} 8. Qd1 {[%emt 0:00:05]} Nf6 {[%emt 0:00:05]} 9. Nc3 {[%emt 0:00:12]} d6 {[%emt 0:00:04]} 10. Bg5 {[%emt 0:00:08]} Be6 {[%emt 0:00:05]} 11. Nd5 {[%emt 0:00:17]} Bxd5 {[%emt 0:00:06]} 12. exd5 {[%emt 0:00:04]} Nb8 {[%emt 0:00:06]} 13. Be2 {[%emt 0:00:11]} h6 {[%emt 0:00:10]} 14. Be3 {[%emt 0:04:45]} O-O {[%emt 0:00:23]} 15. O-O {[%emt 0:00:15]} Nbd7 {[%emt 0:00:07]} 16. c4 {[%emt 0:07:48]} Nh7 {[%emt 0:01:06]} 17. b4 {[%emt 0:09:51]} f5 {[%emt 0:09:39]} 18. f3 {[%emt 0:10:18]} f4 {[%emt 0:12:53]} 19. Bf2 {[%emt 0:00:09]} Ng5 {[%emt 0:00:47]} 20. Bd3 {[%emt 0:07:46]} e4 {[%emt 0:10:14]} 21. Bxe4 {[%emt 0:01:07]} Nxe4 {[%emt 0:00:26]} 22. Qe2 {[%emt 0:01:56]} Rae8 {[%emt 0:03:51]} 23. Qxe4 {[%emt 0:34:02]} Qxe4 {[%emt 0:00:36]} 24. fxe4 {[%emt 0:00:05]} Rxe4 {[%emt 0:00:02]} 25. Rac1 {[%emt 0:00:53]} Ne5 {[%emt 0:04:22]} 26. c5 {[%emt 0:01:43]} Rd8 {[%emt 0:16:29]} 27. Rfd1 {[%emt 0:08:42]} Rxb4 {[%emt 0:09:34]} 28. cxd6 {[%emt 0:00:11]} Nf7 {[%emt 0:02:45]} 29. Rc7 {[%emt 0:04:09]} Nxd6 {[%emt 0:00:21]} 30. Bc5 {[%emt 0:00:16]} Re4 {[%emt 0:08:21]} 31. Bxd6 {[%emt 0:03:54]} Rxd6 {[%emt 0:00:01]} 32. Rxb7 {[%emt 0:00:09]} Re2 {[%emt 0:00:50]} 33. Rd4 {[%emt 0:00:50]} Rg6 {[%emt 0:08:33]} 34. d6 {[%emt 0:01:27]} Rgxg2+ {[%emt 0:04:48]} 35. Kf1 {[%emt 0:00:07]} Ref2+ {[%emt 0:01:17]} 36. Ke1 {[%emt 0:00:06]} Rxa2 {[%emt 0:00:10]} 37. Kf1 {[%emt 0:00:40]} Rxh2 {[%emt 0:00:52]} 38. Kg1 {[%emt 0:00:20]} Rag2+ {[%emt 0:00:15]} 39. Kf1 {[%emt 0:00:06]} f3 {[%emt 0:00:11]} 0-1

[Event "58th Akiba Rubinstein A 2022"]
[Site "Polanica-Zdroj"]
[Date "2022.08.16"]
[Round "4.10"]
[White "Motyl, Tomasz"]
[Black "Barwinska, Ewa"]
[Result "0-1"]
[ECO "B20"]
[WhiteElo "1936"]
[BlackElo "1940"]
[Annotator "NA RC"]
[PlyCount "64"]
[EventDate "2022.08.13"]
[EventCountry "POL"]
[SourceTitle "playchess.com"]
[Source "ChessBase"]
[SourceQuality "1"]
[TimeControl "40/5400+30:1800+30"]

1. e4 {[%emt 0:00:04]} c5 {[%emt 0:00:09]} 2. c4 {[%emt 0:00:09]} Nc6 {[%emt 0:00:31]} 3. Ne2 {[%emt 0:00:22]} e5 {[%emt 0:04:08]} 4. Nbc3 {[%emt 0:01:37]} g6 {[%emt 0:01:19]} 5. g3 {[%emt 0:00:50]} Bg7 {[%emt 0:00:17]} 6. Bg2 {[%emt 0:02:46]} Nge7 {[%emt 0:00:16]} 7. d3 {[%emt 0:01:24]} O-O {[%emt 0:01:32]} 8. O-O {[%emt 0:02:46]} d6 {[%emt 0:03:45]} 9. a3 {[%emt 0:01:56]} Be6 {[%emt 0:03:20]} 10. Rb1 {[%emt 0:00:53]} a5 {[%emt 0:00:38]} 11. Nb5 {[%emt 0:12:25]} Qd7 {[%emt 0:03:22]} 12. Nec3 {[%emt 0:05:06]} b6 {[%emt 0:12:20]} 13. Be3 {[%emt 0:06:23]} Nd4 {[%emt 0:05:44]} 14. Bxd4 {[%emt 0:04:35]} exd4 {[%emt 0:02:16]} 15. Ne2 {[%emt 0:05:42]} Rad8 {[%emt 0:03:33]} 16. b4 {[%emt 0:04:54]} axb4 {[%emt 0:01:02]} 17. axb4 {[%emt 0:00:03]} Bh3 {[%emt 0:09:48]} 18. Ra1 {[%emt 0:17:03]} Bxg2 {[%emt 0:00:16]} 19. Kxg2 {[%emt 0:00:04]} Ra8 {[%emt 0:02:25]} 20. Qb3 {[%emt 0:05:24]} f5 {[%emt 0:05:10]} 21. Rxa8 {[%emt 0:02:25]} Rxa8 {[%emt 0:00:37]} 22. f3 {[%emt 0:00:06]} Bh6 {[%emt 0:12:37]} 23. bxc5 {[%emt 0:01:58]} bxc5 {[%emt 0:00:13]} 24. Qb2 {[%emt 0:02:31]} Nc6 {[%emt 0:12:45]} 25. Ra1 {[%emt 0:06:45]} Rf8 {[%emt 0:01:04]} 26. Ra3 {[%emt 0:05:17]} fxe4 {[%emt 0:00:22]} 27. dxe4 {[%emt 0:00:27]} Ne5 {[%emt 0:01:40]} 28. Ra7 {[%emt 0:01:29]} Qe6 {[%emt 0:00:46]} 29. Nc7 {[%emt 0:01:39]} Qxc4 {[%emt 0:00:53]} 30. Nd5 {[%emt 0:03:31]} Nxf3 {[%emt 0:03:07]} 31. Nef4 {[%emt 0:03:50]} Bxf4 {[%emt 0:00:46]} 32. Qb7 {[%emt 0:00:52]} Qe2+ {[%emt 0:00:15]} 0-1

[Event "58th Akiba Rubinstein A 2022"]
[Site "Polanica-Zdroj"]
[Date "2022.08.16"]
[Round "4.11"]
[White "Rog, Bartlomiej"]
[Black "Nowak, Filip"]
[Result "0-1"]
[ECO "D47"]
[WhiteElo "2091"]
[BlackElo "1957"]
[Annotator "NA RC"]
[PlyCount "66"]
[EventDate "2022.08.13"]
[EventCountry "POL"]
[SourceTitle "playchess.com"]
[Source "ChessBase"]
[SourceQuality "1"]
[TimeControl "40/5400+30:1800+30"]

1. Nf3 {[%emt 0:00:04]} d5 {[%emt 0:00:10]} 2. e3 {[%emt 0:00:07]} Nf6 {[%emt 0:00:16]} 3. c4 {[%emt 0:00:07]} c6 {[%emt 0:01:03]} 4. Nc3 {[%emt 0:00:09]} e6 {[%emt 0:00:19]} 5. d4 {[%emt 0:00:45]} Nbd7 {[%emt 0:00:12]} 6. Bd3 {[%emt 0:00:10]} dxc4 {[%emt 0:00:16]} 7. Bxc4 {[%emt 0:00:10]} b5 {[%emt 0:00:21]} 8. Bd3 {[%emt 0:00:09]} Bb7 {[%emt 0:01:25]} 9. e4 {[%emt 0:00:09]} a6 {[%emt 0:09:36]} 10. e5 {[%emt 0:07:25]} Nd5 {[%emt 0:00:33]} 11. Ng5 {[%emt 0:02:27]} Nxc3 {[%emt 0:28:39]} 12. Qf3 {[%emt 0:03:50]} Qe7 {[%emt 0:03:20]} 13. bxc3 {[%emt 0:00:28]} Nb6 {[%emt 0:07:26]} 14. Nxh7 {[%emt 0:18:47]} c5 {[%emt 0:15:45]} 15. Be4 {[%emt 0:01:21]} Bxe4 {[%emt 0:00:17]} 16. Qxe4 {[%emt 0:00:07]} cxd4 {[%emt 0:01:59]} 17. Nxf8 {[%emt 0:05:39]} Kxf8 {[%emt 0:00:23]} 18. a4 {[%emt 0:00:32]} Qc7 {[%emt 0:08:01]} 19. O-O {[%emt 0:02:16]} dxc3 {[%emt 0:04:10]} 20. axb5 {[%emt 0:00:31]} Rh5 {[%emt 0:02:47]} 21. Rxa6 {[%emt 0:13:27]} Rxa6 {[%emt 0:02:29]} 22. bxa6 {[%emt 0:00:08]} Qxe5 {[%emt 0:04:40]} 23. Qb4+ {[%emt 0:01:51]} Kg8 {[%emt 0:01:02]} 24. g3 {[%emt 0:00:24]} Qa5 {[%emt 0:02:05]} 25. Qe7 {[%emt 0:02:28]} Qxa6 {[%emt 0:02:40]} 26. Qe8+ {[%emt 0:00:10]} Kh7 {[%emt 0:00:01]} 27. Qxf7 {[%emt 0:00:10]} Qe2 {[%emt 0:00:08]} 28. Be3 {[%emt 0:02:24]} Nd5 {[%emt 0:02:07]} 29. Qxe6 {[%emt 0:03:46]} Nxe3 {[%emt 0:00:40]} 30. Qe4+ {[%emt 0:00:18]} Rf5 {[%emt 0:00:52]} 31. Rc1 {[%emt 0:07:23]} Qxf2+ {[%emt 0:00:34]} 32. Kh1 {[%emt 0:00:01]} c2 {[%emt 0:00:18]} 33. g4 {[%emt 0:01:34]} Qf3+ {[%emt 0:00:30]} 0-1

[Event "58th Akiba Rubinstein A 2022"]
[Site "Polanica-Zdroj"]
[Date "2022.08.16"]
[Round "4.12"]
[White "Sliwerski, Radoslaw"]
[Black "Majocha, Piotr"]
[Result "0-1"]
[ECO "A52"]
[WhiteElo "1951"]
[BlackElo "2036"]
[Annotator "NA RC"]
[PlyCount "56"]
[EventDate "2022.08.13"]
[EventCountry "POL"]
[SourceTitle "playchess.com"]
[Source "ChessBase"]
[SourceQuality "1"]
[TimeControl "40/5400+30:1800+30"]

1. d4 {[%emt 0:00:03]} Nf6 {[%emt 0:11:14]} 2. c4 {[%emt 0:00:03]} e5 {[%emt 0:01:02]} 3. dxe5 {[%emt 0:00:10]} Ng4 {[%emt 0:00:03]} 4. e3 {[%emt 0:00:06]} Nxe5 {[%emt 0:00:20]} 5. Nh3 {[%emt 0:00:15]} Bc5 {[%emt 0:09:42]} 6. Nc3 {[%emt 0:01:33]} O-O {[%emt 0:00:34]} 7. Be2 {[%emt 0:01:45]} a5 {[%emt 0:09:20]} 8. Nf4 {[%emt 0:04:56]} Nbc6 {[%emt 0:04:12]} 9. Nb5 {[%emt 0:10:30]} Ne7 {[%emt 0:10:48]} 10. a3 {[%emt 0:07:44]} d6 {[%emt 0:10:20]} 11. O-O {[%emt 0:05:52]} N7g6 {[%emt 0:02:51]} 12. Nxg6 {[%emt 0:03:32]} Nxg6 {[%emt 0:00:06]} 13. Qc2 {[%emt 0:02:54]} c6 {[%emt 0:03:53]} 14. Nc3 {[%emt 0:02:23]} f5 {[%emt 0:02:15]} 15. Na4 {[%emt 0:05:22]} Ba7 {[%emt 0:01:12]} 16. g3 {[%emt 0:10:06]} Be6 {[%emt 0:09:16]} 17. Rd1 {[%emt 0:06:17]} Ne5 {[%emt 0:02:19]} 18. b4 {[%emt 0:02:47]} axb4 {[%emt 0:01:34]} 19. axb4 {[%emt 0:00:28]} Qe7 {[%emt 0:01:25]} 20. Bb2 {[%emt 0:02:26]} Ng4 {[%emt 0:06:39]} 21. b5 {[%emt 0:09:49]} f4 {[%emt 0:08:33]} 22. Qe4 {[%emt 0:13:08]} Nxe3 {[%emt 0:00:38]} 23. b6 {[%emt 0:01:01]} Nxd1 {[%emt 0:01:19]} 24. bxa7 {[%emt 0:03:48]} fxg3 {[%emt 0:00:51]} 25. fxg3 {[%emt 0:01:52]} Nf2 {[%emt 0:00:24]} 26. Qd4 {[%emt 0:00:49]} Nh3+ {[%emt 0:01:44]} 27. Kh1 {[%emt 0:00:04]} Rxa7 {[%emt 0:00:08]} 28. Qxa7 {[%emt 0:00:33]} Bd5+ {[%emt 0:00:09]} 0-1

[Event "58th Akiba Rubinstein A 2022"]
[Site "Polanica-Zdroj"]
[Date "2022.08.16"]
[Round "4.13"]
[White "Hetzer, Volkhard"]
[Black "Paszkowski, Krystian"]
[Result "1-0"]
[ECO "A04"]
[WhiteElo "1921"]
[BlackElo "1988"]
[Annotator "NA RC"]
[PlyCount "95"]
[EventDate "2022.08.13"]
[EventCountry "POL"]
[SourceTitle "playchess.com"]
[Source "ChessBase"]
[SourceQuality "1"]
[TimeControl "40/5400+30:1800+30"]

1. Nf3 {[%emt 0:00:02]} c5 {[%emt 0:01:15]} 2. c4 {[%emt 0:01:07]} g6 {[%emt 0:00:28]} 3. Nc3 {[%emt 0:00:05]} Bg7 {[%emt 0:00:06]} 4. e3 {[%emt 0:01:11]} Nf6 {[%emt 0:17:11]} 5. d4 {[%emt 0:01:31]} cxd4 {[%emt 0:02:21]} 6. exd4 {[%emt 0:00:43]} d5 {[%emt 0:03:09]} 7. cxd5 {[%emt 0:00:16]} Nxd5 {[%emt 0:02:21]} 8. Qb3 {[%emt 0:00:23]} Nxc3 {[%emt 0:09:08]} 9. Bc4 {[%emt 0:00:41]} O-O {[%emt 0:20:10]} 10. bxc3 {[%emt 0:00:13]} Nc6 {[%emt 0:01:19]} 11. Ng5 {[%emt 0:14:06]} e6 {[%emt 0:04:43]} 12. Be2 {[%emt 0:03:19]} h6 {[%emt 0:03:55]} 13. Nf3 {[%emt 0:03:12]} b6 {[%emt 0:09:34]} 14. O-O {[%emt 0:00:48]} Qc7 {[%emt 0:04:24]} 15. Be3 {[%emt 0:33:17]} Bb7 {[%emt 0:03:00]} 16. Rac1 {[%emt 0:01:07]} Kh7 {[%emt 0:04:05]} 17. h4 {[%emt 0:00:29]} Qe7 {[%emt 0:02:43]} 18. Qb1 {[%emt 0:01:23]} Kh8 {[%emt 0:01:27]} 19. Rfe1 {[%emt 0:10:06]} Rfd8 {[%emt 0:01:07]} 20. Bf4 {[%emt 0:01:34]} Rac8 {[%emt 0:01:42]} 21. Bd3 {[%emt 0:01:12]} Kg8 {[%emt 0:03:31]} 22. Re2 {[%emt 0:05:04]} Qf6 {[%emt 0:02:39]} 23. Bg3 {[%emt 0:00:33]} Ba8 {[%emt 0:00:58]} 24. Ba6 {[%emt 0:01:36]} Na5 {[%emt 0:00:12]} 25. Bxc8 {[%emt 0:03:06]} Bxf3 {[%emt 0:00:22]} 26. Re3 {[%emt 0:00:08]} Bxg2 {[%emt 0:00:52]} 27. Bxe6 {[%emt 0:00:50]} Bb7 {[%emt 0:00:02]} 28. Bb3 {[%emt 0:04:51]} Nxb3 {[%emt 0:00:08]} 29. axb3 {[%emt 0:01:09]} Qc6 {[%emt 0:00:23]} 30. Kf1 {[%emt 0:05:06]} Qg2+ {[%emt 0:00:31]} 31. Ke1 {[%emt 0:00:10]} f5 {[%emt 0:00:44]} 32. Qd3 {[%emt 0:02:11]} Rf8 {[%emt 0:00:26]} 33. Be5 {[%emt 0:00:54]} Bxe5 {[%emt 0:00:31]} 34. Rxe5 {[%emt 0:01:08]} Be4 {[%emt 0:00:32]} 35. Qg3 {[%emt 0:00:24]} f4 {[%emt 0:00:47]} 36. Qxg2 {[%emt 0:00:21]} Bxg2 {[%emt 0:00:02]} 37. c4 {[%emt 0:02:02]} Kf7 {[%emt 0:00:11]} 38. c5 {[%emt 0:00:16]} bxc5 {[%emt 0:01:02]} 39. Rcxc5 {[%emt 0:00:06]} Rb8 {[%emt 0:00:44]} 40. Rb5 {[%emt 0:00:00]} Rc8 {[%emt 0:00:00]} 41. Kd2 {[%emt 0:03:31]} a6 {[%emt 0:00:45]} 42. Rbc5 {[%emt 0:00:14]} Rd8 {[%emt 0:00:16]} 43. Kc3 {[%emt 0:00:16]} Kf6 44. Re1 {[%emt 0:02:22]} g5 {[%emt 0:00:53]} 45. hxg5+ {[%emt 0:00:09]} hxg5 {[%emt 0:00:02]} 46. Ree5 {[%emt 0:00:28]} Rg8 {[%emt 0:00:22]} 47. Rf5+ {[%emt 0:00:14]} Ke6 {[%emt 0:00:34]} 48. Rxg5 {[%emt 0:00:00]} 1-0

[Event "58th Akiba Rubinstein A 2022"]
[Site "Polanica-Zdroj"]
[Date "2022.08.16"]
[Round "4.14"]
[White "Skrzyczek, Tomasz"]
[Black "Czechowski, Jakub"]
[Result "1/2-1/2"]
[ECO "E73"]
[WhiteElo "1909"]
[BlackElo "2003"]
[Annotator "NA RC"]
[PlyCount "122"]
[EventDate "2022.08.13"]
[EventCountry "POL"]
[SourceTitle "playchess.com"]
[Source "ChessBase"]
[SourceQuality "1"]
[TimeControl "40/5400+30:1800+30"]

1. d4 {[%emt 0:00:17]} Nf6 {[%emt 0:00:06]} 2. c4 {[%emt 0:00:04]} g6 {[%emt 0:00:03]} 3. Nc3 {[%emt 0:00:04]} Bg7 {[%emt 0:00:04]} 4. e4 {[%emt 0:00:35]} d6 {[%emt 0:00:05]} 5. Be2 {[%emt 0:00:19]} O-O {[%emt 0:00:07]} 6. Be3 {[%emt 0:00:15]} e5 {[%emt 0:00:11]} 7. d5 {[%emt 0:00:24]} c6 {[%emt 0:01:23]} 8. g4 {[%emt 0:07:00]} cxd5 {[%emt 0:00:17]} 9. cxd5 {[%emt 0:00:34]} a5 {[%emt 0:00:16]} 10. g5 {[%emt 0:01:57]} Ne8 {[%emt 0:00:58]} 11. h4 {[%emt 0:02:00]} Nd7 {[%emt 0:00:58]} 12. f3 {[%emt 0:20:10]} Nc5 {[%emt 0:00:17]} 13. Nh3 {[%emt 0:00:34]} a4 {[%emt 0:01:27]} 14. Nf2 {[%emt 0:06:05]} Qa5 {[%emt 0:00:17]} 15. Qd2 {[%emt 0:02:16]} Bd7 {[%emt 0:04:48]} 16. Nd3 {[%emt 0:04:41]} Nxd3+ {[%emt 0:00:45]} 17. Bxd3 {[%emt 0:00:42]} Nc7 {[%emt 0:00:15]} 18. Ne2 {[%emt 0:04:44]} Qxd2+ {[%emt 0:05:25]} 19. Kxd2 {[%emt 0:00:22]} Rfc8 {[%emt 0:01:19]} 20. Rac1 {[%emt 0:01:26]} Bf8 {[%emt 0:05:42]} 21. Rc2 {[%emt 0:02:54]} Na6 {[%emt 0:06:19]} 22. Rxc8 {[%emt 0:06:42]} Rxc8 {[%emt 0:00:34]} 23. Bxa6 {[%emt 0:00:05]} bxa6 {[%emt 0:00:06]} 24. Rc1 {[%emt 0:01:00]} Rb8 {[%emt 0:01:23]} 25. Rc2 {[%emt 0:00:49]} Be7 {[%emt 0:00:14]} 26. Kc1 {[%emt 0:09:53]} Bd8 {[%emt 0:00:17]} 27. Nc3 {[%emt 0:00:59]} f5 {[%emt 0:07:24]} 28. Bf2 {[%emt 0:04:07]} Ba5 {[%emt 0:02:25]} 29. Be3 {[%emt 0:08:49]} Kf7 {[%emt 0:00:42]} 30. Bd2 {[%emt 0:01:04]} Ke7 {[%emt 0:02:39]} 31. Nd1 {[%emt 0:00:29]} Bb6 {[%emt 0:00:14]} 32. Be3 {[%emt 0:00:13]} Bxe3+ {[%emt 0:04:57]} 33. Nxe3 fxe4 {[%emt 0:00:02]} 34. fxe4 {[%emt 0:00:23]} Rf8 {[%emt 0:00:05]} 35. Rc7 {[%emt 0:02:47]} Rf4 {[%emt 0:01:40]} 36. Nc4 {[%emt 0:00:21]} Kd8 {[%emt 0:00:04]} 37. Ra7 {[%emt 0:00:33]} Rxe4 {[%emt 0:00:35]} 38. Nxd6 {[%emt 0:00:25]} Rd4 {[%emt 0:00:46]} 39. Nf7+ {[%emt 0:00:47]} Ke8 {[%emt 0:02:19]} 40. Nxe5 {[%emt 0:00:00]} Rxd5 {[%emt 0:00:00]} 41. Nxd7 {[%emt 0:09:25]} Rxd7 {[%emt 0:00:09]} 42. Rxa6 {[%emt 0:00:13]} Rd4 {[%emt 0:00:05]} 43. h5 {[%emt 0:06:00]} gxh5 {[%emt 0:02:02]} 44. Rh6 {[%emt 0:00:21]} Kf7 {[%emt 0:01:25]} 45. Rxh5 {[%emt 0:01:20]} Kg6 {[%emt 0:02:37]} 46. Rh6+ {[%emt 0:00:21]} Kxg5 {[%emt 0:00:05]} 47. Rxh7 {[%emt 0:00:05]} Kf6 {[%emt 0:01:31]} 48. Kc2 {[%emt 0:02:35]} Ke6 {[%emt 0:00:51]} 49. Kc3 {[%emt 0:00:30]} Rg4 {[%emt 0:00:07]} 50. Rc7 {[%emt 0:06:16]} Kd5 {[%emt 0:00:24]} 51. b3 {[%emt 0:05:41]} Rg2 {[%emt 0:00:49]} 52. bxa4 {[%emt 0:00:52]} Rxa2 {[%emt 0:00:05]} 53. Kb4 {[%emt 0:00:17]} Kd6 {[%emt 0:00:30]} 54. Rc8 {[%emt 0:00:59]} Kd7 {[%emt 0:00:13]} 55. Rc4 {[%emt 0:00:08]} Rb2+ {[%emt 0:02:33]} 56. Ka3 {[%emt 0:00:31]} Rb7 {[%emt 0:00:16]} 57. a5 {[%emt 0:00:29]} Rc7 {[%emt 0:00:03]} 58. Rb4 {[%emt 0:00:42]} Kc8 {[%emt 0:00:10]} 59. Ka4 {[%emt 0:00:15]} Rb7 {[%emt 0:00:06]} 60. Rh4 {[%emt 0:00:13]} Kb8 {[%emt 0:00:10]} 61. Rh6 {[%emt 0:01:26]} Ka7 {[%emt 0:00:23]} 1/2-1/2